fUSD/lending_fUSD_20240616
["ID","MTS","AMOUNT","RATE_DAILY","PERIOD"]
[329611092,1718503860778,-500.0,0.00021917,2]
[329611093,1718503860794,-794.74,0.00021917,2]
[329611094,1718503860814,-500.0,0.00021917,2]
[329611095,1718503860837,-500.0,0.00021917,2]
[329611096,1718503860850,-11828.76,0.00021917,2]
[329611097,1718503860861,-500.0,0.00021917,2]
[329611098,1718503860871,-566.52,0.00021917,2]
[329611099,1718503860883,-500.0,0.00021917,2]
[329611100,1718503860895,-736.76,0.00021917,2]
[329611101,1718503860908,-500.0,0.00021917,2]
[329611102,1718503860919,-500.0,0.00021917,2]
[329611103,1718503860930,-500.0,0.00021917,2]
[329611104,1718503860940,-500.0,0.00021917,2]
[329611105,1718503860955,-1849.1,0.00021917,2]
[329611106,1718503860967,-500.0,0.00021917,2]
[329611107,1718503861012,-500.0,0.00021917,2]
[329611108,1718503861023,-500.0,0.00021917,2]
[329611109,1718503861034,-500.0,0.00021917,2]
[329611110,1718503861046,-500.0,0.00021917,2]
[329611111,1718503861061,-500.0,0.00021917,2]
[329611112,1718503861076,-500.0,0.00021917,2]
[329611113,1718503861087,-500.0,0.00021917,2]
[329611114,1718503861100,-500.0,0.00021917,2]
[329611115,1718503861112,-500.0,0.00021917,2]
[329611116,1718503861153,-500.0,0.00021917,2]
[329611117,1718503861173,-500.0,0.00021917,2]
[329611118,1718503861212,-500.0,0.00021917,2]
[329611119,1718503861235,-500.0,0.00021917,2]
[329611120,1718503861248,-500.0,0.00021917,2]
[329611121,1718503861266,-500.0,0.00021917,2]
[329611122,1718503861289,-500.0,0.00021917,2]
[329611123,1718503861316,-500.0,0.00021917,2]
[329611124,1718503861353,-500.0,0.00021917,2]
[329611125,1718503861388,-500.0,0.00021917,2]
[329611126,1718503861399,-500.0,0.00021917,2]
[329611127,1718503861426,-500.0,0.00021917,2]
[329611128,1718503861441,-500.0,0.00021917,2]
[329611129,1718503861459,-500.0,0.00021917,2]
[329611130,1718503861476,-500.0,0.00021917,2]
[329611131,1718503861492,-1162.7,0.00021917,2]
[329611132,1718503861516,-500.0,0.00021917,2]
[329611133,1718503861527,-500.0,0.00021917,2]
[329611134,1718503861557,-743.0,0.00021917,2]
[329611135,1718503861577,-618.45,0.00021917,2]
[329611136,1718503861596,-983.52,0.00021917,2]
[329611137,1718503861608,-500.0,0.00021917,2]
[329611138,1718503861627,-2127.13,0.00021917,2]
[329611139,1718503861653,-500.0,0.00021917,2]
[329611140,1718503861667,-500.0,0.00021917,2]
[329611141,1718503861680,-889.76,0.00021917,2]
[329611142,1718503861692,-500.0,0.00021917,2]
[329611143,1718503861714,-500.0,0.00021917,2]
[329611144,1718503861743,-2913.09,0.00021917,2]
[329611145,1718503861766,-964.68,0.00021917,2]
[329611146,1718503861780,-832.53,0.00021917,2]
[329611147,1718503861818,-500.0,0.00021917,2]
[329611148,1718503861849,-521.25,0.00021917,2]
[329611149,1718503861859,-511.57251239,0.00021917,2]
[329611150,1718503861883,-500.0,0.00021917,2]
[329611151,1718503861894,-500.0,0.00021917,2]
[329611152,1718503861906,-500.0,0.00021917,2]
[329611153,1718503861918,-500.0,0.00021917,2]
[329611154,1718503861931,-10289.78,0.00021917,2]
[329611155,1718503861942,-500.0,0.00021917,2]
[329611156,1718503861961,-1735.83,0.00021917,2]
[329611157,1718503861972,-660.33,0.00021917,2]
[329611158,1718503861982,-500.0,0.00021917,2]
[329611159,1718503861993,-500.0,0.00021917,2]
[329611160,1718503862003,-500.0,0.00021917,2]
[329611161,1718503862026,-1724.51,0.00021917,2]
[329611162,1718503862037,-500.0,0.00021917,2]
[329611163,1718503862064,-591.83,0.00021917,2]
[329611164,1718503862092,-690.32,0.00021917,2]
[329611165,1718503862103,-500.0,0.00021917,2]
[329611166,1718503862144,-1146.14,0.00021917,2]
[329611167,1718503862161,-500.0,0.00021917,2]
[329611168,1718503862174,-500.0,0.00021917,2]
[329611169,1718503862185,-993.5,0.00021917,2]
[329611170,1718503862197,-852.1,0.00021917,2]
[329611171,1718503862212,-500.0,0.00021917,2]
[329611172,1718503862222,-500.0,0.00021917,2]
[329611173,1718503862241,-500.0,0.00021917,2]
[329611174,1718503862252,-2485.47,0.00021917,2]
[329611175,1718503862263,-500.0,0.00021917,2]
[329611176,1718503862274,-5662.02,0.00021917,2]
[329611177,1718503862288,-500.0,0.00021917,2]
[329611178,1718503862317,-500.0,0.00021917,2]
[329611179,1718503862328,-500.0,0.00021917,2]
[329611180,1718503862342,-500.0,0.00021917,2]
[329611181,1718503862355,-502.14365995,0.00021917,2]
[329611182,1718503862372,-500.0,0.00021917,2]
[329611183,1718503862389,-595.83,0.00021917,2]
[329611184,1718503862401,-500.0,0.00021917,2]
[329611185,1718503862412,-500.0,0.00021917,2]
[329611186,1718503862432,-1026.24,0.00021917,2]
[329611187,1718503862459,-349.93960614,0.00021917,2]
[329611188,1718503862475,-500.0,0.00021917,2]
[329611189,1718503862486,-954.85,0.00021917,2]
[329611190,1718503862498,-500.0,0.00021917,2]
[329611191,1718503862509,-500.0,0.00021917,2]
[329611192,1718503862519,-500.0,0.00021917,2]
[329611193,1718503862534,-500.0,0.00021917,2]
[329611194,1718503862565,-500.0,0.00021917,2]
[329611195,1718503862576,-500.0,0.00021917,2]
[329611196,1718503862587,-500.0,0.00021917,2]
[329611197,1718503862612,-1197.5,0.00021917,2]
[329611198,1718503862630,-500.0,0.00021917,2]
[329611199,1718503862641,-500.0,0.00021917,2]
[329611200,1718503862653,-500.0,0.00021917,2]
[329611201,1718503862669,-500.0,0.00021917,2]
[329611202,1718503862682,-1017.3,0.00021917,2]
[329611203,1718503862696,-500.0,0.00021917,2]
[329611204,1718503862713,-3513.37,0.00021917,2]
[329611205,1718503862729,-3161.25,0.00021917,2]
[329611206,1718503862782,-319.53828328,0.00021917,2]
[329611207,1718503862836,-500.0,0.00021917,2]
[329611208,1718503862851,-500.0,0.00021917,2]
[329611209,1718503862872,-500.0,0.00021917,2]
[329611210,1718503862897,-500.0,0.00021917,2]
[329611211,1718503862908,-753.54,0.00021917,2]
[329611212,1718503862920,-392.49602697,0.00021917,2]
[329611213,1718503862937,-500.0,0.00021917,2]
[329611214,1718503862950,-500.0,0.00021917,2]
[329611215,1718503862962,-507.44943023,0.00021917,2]
[329611216,1718503862973,-500.0,0.00021917,2]
[329611217,1718503862984,-641.64,0.00021917,2]
[329611218,1718503862996,-586.04,0.00021917,2]
[329611219,1718503863022,-1085.08,0.00021917,2]
[329611220,1718503863033,-500.0,0.00021917,2]
[329611221,1718503863045,-500.0,0.00021917,2]
[329611222,1718503863056,-2464.16,0.00021917,2]
[329611223,1718503863072,-807.37,0.00021917,2]
[329611224,1718503863083,-500.0,0.00021917,2]
[329611225,1718503863093,-683.57,0.00021917,2]
[329611226,1718503863127,-500.0,0.00021917,2]
[329611227,1718503863139,-500.0,0.00021917,2]
[329611228,1718503863150,-500.0,0.00021917,2]
[329611229,1718503863179,-500.0,0.00021917,2]
[329611230,1718503863208,-551.96,0.00021917,2]
[329611231,1718503863231,-515.29584611,0.00021917,2]
[329611232,1718503863243,-500.0,0.00021917,2]
[329611233,1718503863253,-500.0,0.00021917,2]
[329611234,1718503863264,-500.0,0.00021917,2]
[329611235,1718503863276,-500.0,0.00021917,2]
[329611236,1718503863312,-835.09,0.00021917,2]
[329611237,1718503863344,-938.07,0.00021917,2]
[329611238,1718503863376,-727.91,0.00021917,2]
[329611239,1718503863411,-870.45,0.00021917,2]
[329611240,1718503863422,-1205.73,0.00021917,2]
[329611241,1718503863442,-500.0,0.00021917,2]
[329611242,1718503863472,-500.0,0.00021917,2]
[329611243,1718503863485,-500.0,0.00021917,2]
[329611244,1718503863543,-500.0,0.00021917,2]
[329611245,1718503863554,-500.0,0.00021917,2]
[329611246,1718503863566,-586.71,0.00021917,2]
[329611247,1718503863580,-500.0,0.00021917,2]
[329611248,1718503863591,-500.0,0.00021917,2]
[329611249,1718503863608,-500.0,0.00021917,2]
[329611250,1718503863625,-500.0,0.00021917,2]
[329611251,1718503863637,-500.0,0.00021917,2]
[329611252,1718503863651,-686.42,0.00021917,2]
[329611253,1718503863670,-500.0,0.00021917,2]
[329611254,1718503863682,-500.0,0.00021917,2]
[329611255,1718503863702,-1725.35,0.00021917,2]
[329611256,1718503863721,-500.0,0.00021917,2]
[329611257,1718503863740,-1036.75,0.00021917,2]
[329611258,1718503863765,-500.0,0.00021917,2]
[329611259,1718503863789,-1985.28,0.00021917,2]
[329611260,1718503863809,-682.8,0.00021917,2]
[329611261,1718503863823,-500.0,0.00021917,2]
[329611262,1718503863850,-861.5,0.00021917,2]
[329611263,1718503863871,-500.0,0.00021917,2]
[329611264,1718503863891,-500.0,0.00021917,2]
[329611265,1718503863906,-3147.69,0.00021917,2]
[329611266,1718503863926,-500.0,0.00021917,2]
[329611267,1718503863942,-1644.22,0.00021917,2]
[329611268,1718503863960,-500.0,0.00021917,2]
[329611269,1718503863992,-652.77,0.00021917,2]
[329611270,1718503864004,-500.0,0.00021917,2]
[329611271,1718503864018,-500.0,0.00021917,2]
[329611272,1718503864032,-500.0,0.00021917,2]
[329611273,1718503864080,-1419.11,0.00021917,2]
[329611274,1718503864091,-535.39608158,0.00021917,2]
[329611275,1718503864110,-924.39,0.00021917,2]
[329611276,1718503864137,-747.95,0.00021917,2]
[329611277,1718503864150,-502.11796672,0.00021917,2]
[329611278,1718503864169,-500.0,0.00021917,2]
[329611279,1718503864228,-956.26,0.00021917,2]
[329611280,1718503864240,-500.0,0.00021917,2]
[329611281,1718503864252,-918.61,0.00021917,2]
[329611282,1718503864270,-500.0,0.00021917,2]
[329611283,1718503864284,-715.6,0.00021917,2]
[329611284,1718503864299,-624.99,0.00021917,2]
[329611285,1718503864309,-500.0,0.00021917,2]
[329611286,1718503864334,-500.0,0.00021917,2]
[329611287,1718503864345,-500.0,0.00021917,2]
[329611288,1718503864365,-9237.54,0.00021917,2]
[329611289,1718503864378,-500.0,0.00021917,2]
[329611290,1718503864390,-1696.32,0.00021917,2]
[329611291,1718503864402,-750.81,0.00021917,2]
[329611292,1718503864421,-500.0,0.00021917,2]
[329611293,1718503864432,-981.81016978,0.00021917,2]
[329611294,1718503864442,-500.0,0.00021917,2]
[329611295,1718503864456,-500.0,0.00021917,2]
[329611296,1718503864466,-500.0,0.00021917,2]
[329611297,1718503864477,-1316.01,0.00021917,2]
[329611298,1718503864488,-500.0,0.00021917,2]
[329611299,1718503864499,-1020.34,0.00021917,2]
[329611300,1718503864512,-500.0,0.00021917,2]
[329611301,1718503864524,-500.0,0.00021917,2]
[329611302,1718503864539,-3684.94,0.00021917,2]
[329611303,1718503864559,-701.45,0.00021917,2]
[329611304,1718503864573,-794.3,0.00021917,2]
[329611305,1718503864607,-500.0,0.00021917,2]
[329611306,1718503864638,-750.09,0.00021917,2]
[329611307,1718503864648,-500.0,0.00021917,2]
[329611308,1718503864987,-713.29,0.00021917,2]
[329611309,1718503864998,-744.86,0.00021917,2]
[329611310,1718503865010,-500.0,0.00021917,2]
[329611311,1718503865021,-500.0,0.00021917,2]
[329611312,1718503865051,-500.0,0.00021917,2]
[329611313,1718503865062,-500.0,0.00021917,2]
[329611314,1718503865074,-500.0,0.00021917,2]
[329611315,1718503865085,-500.0,0.00021917,2]
[329611316,1718503865096,-500.0,0.00021917,2]
[329611317,1718503865113,-700.81,0.00021917,2]
[329611318,1718503865132,-1872.27,0.00021917,2]
[329611319,1718503865152,-500.0,0.00021917,2]
[329611320,1718503865165,-500.0,0.00021917,2]
[329611321,1718503865181,-500.0,0.00021917,2]
[329611322,1718503865194,-776.65,0.00021917,2]
[329611323,1718503865206,-500.0,0.00021917,2]
[329611324,1718503865246,-1039.5,0.00021917,2]
[329611325,1718503865299,-989.16,0.00021917,2]
[329611326,1718503865312,-552.95832615,0.00021917,2]
[329611327,1718503865332,-701.63,0.00021917,2]
[329611328,1718503865350,-1457.84,0.00021917,2]
[329611329,1718503865379,-1151.87,0.00021917,2]
[329611330,1718503865391,-500.0,0.00021917,2]
[329611331,1718503865420,-500.0,0.00021917,2]
[329611332,1718503865438,-1713.58,0.00021917,2]
[329611333,1718503865459,-500.0,0.00021917,2]
[329611334,1718503865496,-585.92,0.00021917,2]
[329611335,1718503865518,-500.0,0.00021917,2]
[329611336,1718503865529,-500.0,0.00021917,2]
[329611337,1718503865541,-1219.4,0.00021917,2]
[329611338,1718503865555,-500.0,0.00021917,2]
[329611339,1718503865568,-824.34,0.00021917,2]
[329611340,1718503865600,-500.0,0.00021917,2]
[329611341,1718503865611,-500.0,0.00021917,2]
[329611342,1718503865632,-500.0,0.00021917,2]
[329611343,1718503865668,-1787.51,0.00021917,2]
[329611344,1718503865708,-1226.58,0.00021917,2]
[329611345,1718503865721,-500.0,0.00021917,2]
[329611346,1718503865738,-500.0,0.00021917,2]
[329611347,1718503865788,-500.0,0.00021917,2]
[329611348,1718503865820,-500.0,0.00021917,2]
[329611349,1718503865875,-1723.67,0.00021917,2]
[329611350,1718503865888,-500.0,0.00021917,2]
[329611351,1718503865904,-500.0,0.00021917,2]
[329611352,1718503865940,-500.0,0.00021917,2]
[329611353,1718503865975,-1613.15,0.00021917,2]
[329611354,1718503865988,-2418.6,0.00021917,2]
[329611355,1718503865998,-522.86,0.00021917,2]
[329611356,1718503866009,-500.0,0.00021917,2]
[329611357,1718503866028,-500.0,0.00021917,2]
[329611358,1718503866042,-500.0,0.00021917,2]
[329611359,1718503866054,-505.1789485,0.00021917,2]
[329611360,1718503866067,-500.0,0.00021917,2]
[329611361,1718503866083,-1233.2,0.00021917,2]
[329611362,1718503866095,-556.44,0.00021917,2]
[329611363,1718503866118,-1863.95,0.00021917,2]
[329611364,1718503866145,-500.0,0.00021917,2]
[329611365,1718503866156,-1517.71,0.00021917,2]
[329611366,1718503866175,-500.0,0.00021917,2]
[329611367,1718503866186,-500.0,0.00021917,2]
[329611368,1718503866212,-695.89,0.00021917,2]
[329611369,1718503866234,-500.0,0.00021917,2]
[329611370,1718503866261,-957.53,0.00021917,2]
[329611371,1718503866282,-936.73,0.00021917,2]
[329611372,1718503866300,-500.0,0.00021917,2]
[329611373,1718503866314,-500.0,0.00021917,2]
[329611374,1718503866329,-500.0,0.00021917,2]
[329611375,1718503866344,-500.0,0.00021917,2]
[329611376,1718503866367,-668.06,0.00021917,2]
[329611377,1718503866393,-6122.14,0.00021917,2]
[329611378,1718503866415,-2312.98,0.00021917,2]
[329611379,1718503866430,-831.09,0.00021917,2]
[329611380,1718503866442,-664.61,0.00021917,2]
[329611381,1718503866454,-1184.81,0.00021917,2]
[329611382,1718503866477,-500.0,0.00021917,2]
[329611383,1718503866496,-500.0,0.00021917,2]
[329611384,1718503866510,-500.0,0.00021917,2]
[329611385,1718503866528,-500.0,0.00021917,2]
[329611386,1718503866539,-1689.88,0.00021917,2]
[329611387,1718503866550,-500.0,0.00021917,2]
[329611388,1718503866561,-500.0,0.00021917,2]
[329611389,1718503866584,-500.0,0.00021917,2]
[329611390,1718503866607,-2769.45,0.00021917,2]
[329611391,1718503866626,-500.0,0.00021917,2]
[329611392,1718503866657,-1048.43,0.00021917,2]
[329611393,1718503866669,-700.68,0.00021917,2]
[329611394,1718503866696,-500.0,0.00021917,2]
[329611395,1718503866710,-500.0,0.00021917,2]
[329611396,1718503866723,-5410.22,0.00021917,2]
[329611397,1718503866736,-2117.09,0.00021917,2]
[329611398,1718503866747,-500.0,0.00021917,2]
[329611399,1718503866768,-500.0,0.00021917,2]
[329611400,1718503866791,-500.0,0.00021917,2]
[329611401,1718503866823,-504.79,0.00021917,2]
[329611402,1718503866839,-522.21,0.00021917,2]
[329611403,1718503866853,-2297.84,0.00021917,2]
[329611404,1718503866882,-500.0,0.00021917,2]
[329611405,1718503866914,-500.0,0.00021917,2]
[329611406,1718503866940,-500.0,0.00021917,2]
[329611407,1718503866983,-743.82,0.00021917,2]
[329611408,1718503866994,-501.08536762,0.00021917,2]
[329611409,1718503867006,-500.0,0.00021917,2]
[329611410,1718503867015,-500.0,0.00021917,2]
[329611411,1718503867029,-830.31,0.00021917,2]
[329611412,1718503867041,-747.79,0.00021917,2]
[329611413,1718503867051,-500.0,0.00021917,2]
[329611414,1718503867061,-1205.67,0.00021917,2]
[329611415,1718503867083,-523.77,0.00021917,2]
[329611416,1718503867096,-500.0,0.00021917,2]
[329611417,1718503867125,-860.73,0.00021917,2]
[329611418,1718503867135,-1020.04,0.00021917,2]
[329611419,1718503867150,-1728.11,0.00021917,2]
[329611420,1718503867180,-500.0,0.00021917,2]
[329611421,1718503867203,-500.0,0.00021917,2]
[329611422,1718503867240,-385.32411876,0.00021917,2]
[329611423,1718503867252,-500.0,0.00021917,2]
[329611424,1718503867264,-659.13,0.00021917,2]
[329611425,1718503867276,-18043.31,0.00021917,2]
[329611426,1718503867309,-500.0,0.00021917,2]
[329611427,1718503867324,-500.0,0.00021917,2]
[329611428,1718503867340,-500.0,0.00021917,2]
[329611429,1718503867369,-590.36,0.00021917,2]
[329611430,1718503867382,-1438.33,0.00021917,2]
[329611431,1718503867402,-500.0,0.00021917,2]
[329611432,1718503867416,-958.51,0.00021917,2]
[329611433,1718503867427,-10446.27,0.00021917,2]
[329611434,1718503867443,-1128.35,0.00021917,2]
[329611435,1718503867461,-500.0,0.00021917,2]
[329611436,1718503867474,-379.08766114,0.00021917,2]
[329611437,1718503867486,-500.0,0.00021917,2]
[329611438,1718503867499,-500.0,0.00021917,2]
[329611439,1718503867510,-157.25971137,0.00021917,2]
[329611440,1718503867527,-500.0,0.00021917,2]
[329611441,1718503867556,-500.0,0.00021917,2]
[329611442,1718503867577,-500.0,0.00021917,2]
[329611443,1718503867597,-1725.6,0.00021917,2]
[329611444,1718503867610,-500.0,0.00021917,2]
[329611445,1718503867626,-500.0,0.00021917,2]
[329611446,1718503867641,-500.0,0.00021917,2]
[329611447,1718503867662,-500.0,0.00021917,2]
[329611448,1718503867679,-500.0,0.00021917,2]
[329611449,1718503867694,-219.61,0.00021918,2]
[329611450,1718503867708,-1547.13,0.00021918,2]
[329611451,1718503867730,-250.0,0.00021918,2]
[329611452,1718503867745,-1263.95,0.0002192,2]
[329611453,1718503867760,-1263.95,0.0002192,2]
[329611454,1718503867799,-1263.95,0.0002192,2]
[329611455,1718503867815,-1263.95,0.0002192,2]
[329611456,1718503867833,-3717.194,0.00021927,2]
[329611457,1718503867855,-3609.527,0.00021927,2]
[329611458,1718503867876,-3605.882,0.00021927,2]
[329611459,1718503867898,-698.03669074,0.00021991,2]
[329611460,1718503867924,-791.46201301,0.00022,2]
[329611461,1718503867937,-2200.92783129,0.00022,10]
[329611462,1718503867960,-472.33870925,0.00022091,2]
[329611463,1718503867989,-177.53318555,0.00022091,2]
[329611464,1718503868017,-200.0,0.00022149,2]
[329611465,1718503868074,-500.0,0.00022149,2]
[329611466,1718503868092,-200.0,0.00022149,2]
[329611467,1718503868106,-288.0,0.0002218,2]
[329611468,1718503868118,-1013.03,0.0002219,3]
[329611469,1718503868134,-1013.03,0.0002219,3]
[329611470,1718503868149,-1013.03,0.0002219,3]
[329611471,1718503868165,-1013.03,0.0002219,3]
[329611472,1718503868179,-500.0,0.0002219,3]
[329611473,1718503868201,-500.0,0.0002219,3]
[329611474,1718503868216,-500.0,0.0002219,3]
[329611475,1718503868229,-500.0,0.0002219,3]
[329611476,1718503868243,-501.48412413,0.0002219,3]
[329611477,1718503868258,-500.0,0.00022191,3]
[329611478,1718503868290,-346.58249079,0.00022191,3]
[329611479,1718503868318,-500.0,0.00022191,3]
[329611480,1718503868344,-500.0,0.00022191,3]
[329611481,1718503868381,-500.0,0.00022191,3]
[329611482,1718503868394,-500.0,0.00022191,3]
[329611483,1718503868408,-200.0,0.00022191,3]
[329611484,1718503868420,-500.62488178,0.00022191,3]
[329611485,1718503868461,-157.24187668,0.00022191,3]
[329611486,1718503868471,-508.59429452,0.00022191,3]
[329611487,1718503868482,-500.0,0.00022191,3]
[329611488,1718503868496,-500.0,0.00022191,3]
[329611489,1718503868510,-500.0,0.00022191,3]
[329611490,1718503868521,-503.9563667,0.00022191,3]
[329611491,1718503868575,-500.0,0.00022191,3]
[329611492,1718503868588,-500.0,0.00022191,3]
[329611493,1718503868600,-742.85,0.00022191,3]
[329611494,1718503868614,-500.0,0.00022191,3]
[329611495,1718503868644,-579.26,0.00022191,3]
[329611496,1718503868656,-504.76360077,0.00022191,3]
[329611497,1718503868667,-740.19,0.00022191,3]
[329611498,1718503868680,-500.0,0.00022191,3]
[329611499,1718503868693,-500.0,0.00022191,3]
[329611500,1718503868707,-692.5,0.00022191,3]
[329611501,1718503868728,-533.71668735,0.00022191,3]
[329611502,1718503868742,-500.0,0.00022191,3]
[329611503,1718503868754,-500.0,0.00022191,3]
[329611504,1718503868765,-500.0,0.00022191,3]
[329611505,1718503868782,-500.0,0.00022191,3]
[329611506,1718503868808,-500.0,0.00022191,3]
[329611507,1718503868834,-500.0,0.00022191,3]
[329611508,1718503868852,-500.0,0.00022191,3]
[329611509,1718503868864,-500.0,0.00022191,3]
[329611510,1718503868878,-500.0,0.00022191,3]
[329611511,1718503868893,-500.0,0.00022191,3]
[329611512,1718503868906,-500.0,0.00022191,3]
[329611513,1718503868919,-500.0,0.00022191,3]
[329611514,1718503868960,-171.75142639,0.00022191,3]
[329611515,1718503868976,-500.0,0.00022191,3]
[329611516,1718503868992,-539.25,0.00022191,3]
[329611517,1718503869007,-500.0,0.00022191,3]
[329611518,1718503869022,-996.17,0.00022191,3]
[329611519,1718503869033,-766.91,0.00022191,3]
[329611520,1718503869053,-500.0,0.00022191,3]
[329611521,1718503869104,-500.0,0.00022191,3]
[329611522,1718503869117,-500.0,0.00022191,3]
[329611523,1718503869131,-500.0,0.00022191,3]
[329611524,1718503869156,-500.0,0.00022191,3]
[329611525,1718503869179,-427.942619,0.00022191,3]
[329611526,1718503869204,-755.22,0.00022191,3]
[329611527,1718503869228,-552.52457561,0.00022191,3]
[329611528,1718503869239,-500.0,0.00022191,3]
[329611529,1718503869251,-500.0,0.00022191,3]
[329611530,1718503869264,-500.0,0.00022191,3]
[329611531,1718503869281,-500.0,0.00022191,3]
[329611532,1718503869295,-278.26610686,0.00022191,3]
[329611533,1718503869316,-500.0,0.00022191,3]
[329611534,1718503869336,-500.0,0.00022191,3]
[329611535,1718503869366,-500.0,0.00022191,3]
[329611536,1718503869382,-500.0,0.00022191,3]
[329611537,1718503869403,-500.0,0.00022191,3]
[329611538,1718503869420,-500.0,0.00022191,3]
[329611539,1718503869449,-751.13,0.00022191,3]
[329611540,1718503869468,-671.68,0.00022191,3]
[329611541,1718503869481,-500.0,0.00022191,3]
[329611542,1718503869507,-500.0,0.00022191,3]
[329611543,1718503869528,-500.0,0.00022191,3]
[329611544,1718503869593,-559.93,0.00022191,3]
[329611545,1718503869615,-774.69,0.00022191,3]
[329611546,1718503869636,-500.0,0.00022191,3]
[329611547,1718503869667,-500.0,0.00022191,3]
[329611548,1718503869774,-500.0,0.00022191,3]
[329611549,1718503869790,-500.0,0.00022191,3]
[329611550,1718503869819,-500.0,0.00022191,3]
[329611551,1718503869833,-729.41,0.00022191,3]
[329611552,1718503869845,-500.0,0.00022191,3]
[329611553,1718503869856,-692.86,0.00022191,3]
[329611554,1718503869868,-504.15,0.00022191,3]
[329611555,1718503869890,-500.0,0.00022191,3]
[329611556,1718503869913,-500.0,0.00022191,3]
[329611557,1718503869931,-500.0,0.00022191,3]
[329611558,1718503869948,-500.0,0.00022191,3]
[329611559,1718503869970,-649.12,0.00022191,3]
[329611560,1718503869996,-500.0,0.00022191,3]
[329611561,1718503870024,-500.0,0.00022191,3]
[329611562,1718503870066,-500.0,0.00022191,3]
[329611563,1718503870078,-500.0,0.00022191,3]
[329611564,1718503870097,-500.0,0.00022191,3]
[329611565,1718503870121,-500.0,0.00022191,3]
[329611566,1718503870138,-738.94,0.00022191,3]
[329611567,1718503870151,-500.0,0.00022191,3]
[329611568,1718503870162,-500.0,0.00022191,3]
[329611569,1718503870182,-500.0,0.00022191,3]
[329611570,1718503870195,-252.99643592,0.00022191,2]
[329611571,1718503870218,-500.0,0.00022191,3]
[329611572,1718503870245,-500.0,0.00022191,3]
[329611573,1718503870270,-500.0,0.00022191,3]
[329611574,1718503870286,-500.0,0.00022191,3]
[329611575,1718503870320,-500.0,0.00022191,3]
[329611576,1718503870368,-514.46100982,0.00022191,3]
[329611577,1718503870380,-500.0,0.00022191,3]
[329611578,1718503870393,-526.93401831,0.00022191,3]
[329611579,1718503870420,-500.0,0.00022191,3]
[329611580,1718503870445,-500.0,0.00022191,3]
[329611581,1718503870460,-500.0,0.00022191,3]
[329611582,1718503870471,-500.0,0.00022191,3]
[329611583,1718503870486,-500.0,0.00022191,3]
[329611584,1718503870504,-500.0,0.00022191,3]
[329611585,1718503870528,-500.0,0.00022191,3]
[329611586,1718503870539,-500.0,0.00022191,3]
[329611587,1718503870562,-500.0,0.00022191,3]
[329611588,1718503870575,-500.0,0.00022191,3]
[329611589,1718503870595,-500.0,0.00022191,3]
[329611590,1718503870612,-500.0,0.00022191,3]
[329611591,1718503870638,-500.0,0.00022191,3]